Cogmind - Beta 16 @@@ ROGUE MODE // 2025.11.15 @ 12:50:33 Player: f3-rnm Result: Destroyed by S-27 Virus with Autogun Performance ------------- Evolutions (4) 2000 Regions Visited (6) 1200 Robots Destroyed (34) 170 Value Destroyed (1609) 1609 Prototype IDs (9) 180 Alien Tech Used (0) 0 Bonus (1644) 1644 TOTAL SCORE: 6803 Bonus ------- High Alert Combat Kills 360 Follower Combat Kills 745 Registered with UFD 300 Met Optimus in HQ 500 Friendly Fire -261 Cogmind --------- Core Integrity 0/850 Matter 152/300 Energy 113/300 System Corruption 33% Temperature Cool (98) Movement Hovering (56) Location -6/Factory Parts ------- > --- POWER (1) -------- Angular Momentum Engine > --- PROPULSION (6) --- Gravmag Array Gravmag Array > --- UTILITY (6) ------ Medium Storage Unit Advanced Visual Processing Unit A0-MCA's Component Scanner > --- WEAPON (2) ------- Force Rifle Improved Proton Missile Launcher > --- INVENTORY (10) --- Light Ion Engine Armored Leg Gravmag Array Launcher Loader Force Rifle Phase Cannon Peak State ------------ > --- POWER ------------ Fission Core > --- PROPULSION ------- Flexi-carbon Leg Armored Leg Armored Leg Armored Leg Armored Leg Armored Leg > --- UTILITY ---------- Advanced Heat Sink Huge Storage Unit Enhanced Optical Array Experimental Signal Interpreter Advanced Targeting Computer Core Analyzer > --- WEAPON ----------- Force Rifle Force Rifle > --- INVENTORY -------- Carbon-fiber Leg Armored Huge Wheel Improved Gravmag System Improved Gravmag System Improved Gravmag System Improved Gravmag System Medium Storage Unit Medium Storage Unit Matter Compressor Launcher Loader EM Disruption Field Force Field A0-MCA's Component Scanner High-powered Shock Rifle Force Rifle Force Rifle Gauss Rifle Coil Gun Coil Gun Coil Gun [Rating: 83] Favorites ----------- Power Fission Core Engine Light Ion Engine Power Core Fission Core Propulsion Armored Leg Treads Light Treads Leg Armored Leg Wheel Wheel Hover Unit Airjet Flight Unit Xenon Bombardment Thruster Utility Advanced Targeting Computer Device Improved Reaction Control System Storage Small Storage Unit Processor Advanced Targeting Computer Hackware Makeshift Hacking Suite Weapon Coil Gun Energy Gun Force Rifle Energy Cannon Phase Cannon Ballistic Gun Coil Gun Launcher Improved Proton Missile Launcher Impact Weapon Mace Build | -11 -10 -10 -8 -6 -6 -6 ------- Run | Yrd Mat Sub Scr Fac Was Fac Slots Evolved 8 | . . . . 8 . . Power . | . . . . . . . Propulsion 4 | . . . . 4 . . Utility 4 | . . . . 4 . . Weapon . | . . . . . . . Parts Attached 57 | 6 . 2 2 4 . 43 Power 8 | 1 . 1 . . . 6 Engine 5 | 1 . 1 . . . 3 Core 3 | . . . . . . 3 Reactor . | . . . . . . . Propulsion 20 | 2 . 1 1 1 . 15 Treads 2 | 2 . . . . . . Leg 10 | . . . . . . 10 Wheel 2 | . . 1 . . . 1 Hover 5 | . . . 1 . . 4 Flight 1 | . . . . 1 . . Utility 16 | 1 . . 1 3 . 11 Device 5 | . . . . 1 . 4 Storage 3 | 1 . . . . . 2 Processor 7 | . . . 1 2 . 4 Hackware 1 | . . . . . . 1 Protection . | . . . . . . . Artifact . | . . . . . . . Weapon 13 | 2 . . . . . 11 Energy Gun 5 | 1 . . . . . 4 Energy Cannon 1 | . . . . . . 1 Ballistic Gun 5 | 1 . . . . . 4 Ballistic Cannon . | . . . . . . . Launcher 1 | . . . . . . 1 Special Weapon . | . . . . . . . Impact Weapon 1 | . . . . . . 1 Slashing Weapon . | . . . . . . . Piercing Weapon . | . . . . . . . Special Melee Weapon . | . . . . . . . Unidentified Prototypes 1 | . . . . . . 1 Corrupted Parts 1 | . . . . . . 1 System Corruption 10 | . . . . . . 10 Parts Lost 20 | . . 6 . . 2 12 Power 5 | . . 2 . . . 3 Propulsion 11 | . . 2 . . 1 8 Utility 2 | . . . . . 1 1 Weapon 2 | . . 2 . . . . Highest Loss Streak 5 | . . 4 . . 1 5 To Critical Strikes . | . . . . . . . Average Backups 7 | 1 2 3 3 7 7 10 Power . | . 1 1 . . . . Propulsion 1 | . 1 . . . . 2 Utility 3 | . . 1 2 7 7 4 Weapon 1 | . . . . . . 3 Tool/Special . | . . . . . . . Unused Backups 22 | . . . 2 . . 20 Power 1 | . . . 1 . . . Propulsion 6 | . . . . . . 6 Utility 11 | . . . 1 . . 10 Weapon 4 | . . . . . . 4 Tool/Special . | . . . . . . . Average Slot Usage (%) 67 | . 85 57 41 30 54 82 Engine 2 | . 14 12 . . 3 1 Core 1 | . . . . . . 3 Treads 2 | . 28 15 . . . . Leg 15 | . . . . . . 27 Hover 5 | . . . 13 6 5 2 Device 2 | . . . . 4 1 4 Storage 8 | . 14 14 14 6 6 5 Processor 15 | . . . 13 10 20 20 Hackware 1 | . . . . . . 1 Energy Gun 4 | . 14 2 . . 9 5 Ballistic Gun 5 | . 14 12 . . . 6 Peak Build Rating 83 | 6 6 6 10 32 36 83 Average Rating 40 | 4 6 4 7 20 34 64 On Entrance 13 | . 6 6 3 10 32 36 Avg Prop Armor Cover (%) 9 | . . 20 . 15 10 7 Naked Turns . | . . . . . . . Heaviest Build 106 | 12 12 12 5 6 11 106 Greatest Support 104 | 40 40 40 8 8 8 104 Greatest Overweight (x) 3 | . . 1 1 . 3 2 Average Overweight (x) . | . . . . . . . Largest Inventory Capacity 25 | 8 8 8 8 8 8 25 Average Capacity 11 | 7 8 8 8 8 8 14 Most Carried 25 | 2 2 6 8 8 8 25 Average Carried 8 | 1 2 4 4 7 8 12 Final Capacity 10 | 8 8 8 8 8 8 10 Final Carried 8 | 2 2 4 8 8 8 8 Class Distribution -------------------- 90% | Mutant 9% | Scavenger-Mutant Dominant Class ---------------- Mutant | -10/Materials Mutant | -10/Subcaves Mutant | -8/Scraptown Mutant | -6/Factory Mutant | -6/Waste Mutant | -6/Factory Resources | -11 -10 -10 -8 -6 -6 -6 ----------- Run | Yrd Mat Sub Scr Fac Was Fac Matter Collected 1586 | 259 7 58 20 . 45 1197 Remotely . | . . . . . . . Salvage Created 1977 | . 16 57 . . . 1904 Parts 95 | . 1 1 . . . 93 Haulers Intercepted . | . . . . . . . Recyclers Shooed 4 | . . . . . . 4 Parts Field Recycled . | . . . . . . . Retrieved Matter . | . . . . . . . Parts Self-Destructed 1 | . . 1 . . . . Prevented . | . . . . . . . Parts Restored . | . . . . . . . Kills | -11 -10 -10 -8 -6 -6 -6 ------- Run | Yrd Mat Sub Scr Fac Was Fac Combat Hostiles Destroyed 20 | . . 1 . . . 19 Guns 18 | . . 1 . . . 17 AOE 1 | . . . . . . 1 Classes Destroyed 15 | . 1 1 . . . 13 Worker 2 | . . . . . . 2 Builder 4 | . . . . . . 4 Tunneler 1 | . . . . . . 1 Recycler 4 | . . . . . . 4 Operator 1 | . 1 . . . . . Grunt 6 | . . . . . . 6 Brawler 2 | . . . . . . 2 Duelist 1 | . . . . . . 1 Sentry 3 | . . . . . . 3 Hunter 4 | . . . . . . 4 Programmer 2 | . . . . . . 2 Behemoth 1 | . . . . . . 1 Subdweller 1 | . . 1 . . . . Surgeon 1 | . . . . . . 1 Wasp 1 | . . . . . . 1 Best Kill Streak 4 | . 1 1 . . . 4 Combat Bots Only 4 | . . 1 . . . 4 Max Kills in Single Turn 2 | . 1 1 . . . 2 Gunslinging 1 | . . . . . . 1 Exploded 1 | . . . . . . 1 Melee . | . . . . . . . Uniques/NPCs Destroyed . | . . . . . . . Combat | -11 -10 -10 -8 -6 -6 -6 -------- Run | Yrd Mat Sub Scr Fac Was Fac Hostile Shots Fired 494 | . . 54 . 18 . 422 Missed 184 | . . 12 . 13 . 159 Hits 310 | . . 42 . 5 . 263 Melee 1 | . . . . . . 1 Projectile 309 | . . 42 . 5 . 262 Critical Strikes 12 | . . 1 . . . 11 Damage Taken 5188 | . . 871 . 33 71 4213 Core 1050 | . . 197 . 22 12 819 Absorbed by Shields . | . . . . . . . Regen/Repaired (Parts) 53 | . . . . . . 53 Core Remaining (%) 60 | 100 . . 21 . . . Volleys Fired 156 | 1 1 30 . . 5 119 Largest 2 | 2 2 2 . . 2 2 Hottest 160 | 70 70 70 . . 80 160 Shots Fired 262 | 2 2 38 . . 10 210 Gun 256 | 2 2 38 . . 10 204 Cannon 1 | . . . . . . 1 Launcher 5 | . . . . . . 5 Special . | . . . . . . . Kinetic 134 | 1 1 30 . . . 102 Thermal 123 | 1 1 8 . . 10 103 Explosive . | . . . . . . . Electromagnetic 5 | . . . . . . 5 Robot Hit Streak 15 | . 2 15 . . 6 11 Robot Miss Streak 8 | . . 2 . . 3 8 Penetration Max 1 | . . . . . . 1 Secondary Targets 4 | . . . . . . 4 Max Gunslinging Chain 1 | . . . . . . 1 Shots Hit Robots 170 | . 2 34 . . 4 130 Core Hits 87 | . 2 9 . . 3 73 Critical Kills 4 | . . . . . . 4 Critical Parts Destroyed 5 | . . . . . . 5 Critical Strikes 10 | . . 1 . . . 9 Burn 1 | . . 1 . . . . Destroy 9 | . . . . . . 9 Melee Attacks . | . . . . . . . Impact . | . . . . . . . Slashing . | . . . . . . . Piercing . | . . . . . . . Sneak Attacks . | . . . . . . . Combat Hostiles . | . . . . . . . Follow-up Attacks . | . . . . . . . Damage Inflicted 4329 | . 25 457 . . 95 3752 Guns 3737 | . 25 427 . . 65 3220 Cannons . | . . . . . . . Explosions 532 | . . . . . . 532 Melee . | . . . . . . . Ramming 60 | . . 30 . . 30 . Kinetic 1955 | . 12 326 . . . 1617 Thermal 2090 | . 13 101 . . 65 1911 Explosive . | . . . . . . . Electromagnetic 224 | . . . . . . 224 Impact . | . . . . . . . Slashing . | . . . . . . . Piercing . | . . . . . . . Highest Corruption 33 | . . . . . 18 33 Average Corruption 21 | . . . . . 12 22 Corruption Purged . | . . . . . . . Corruption Blocked . | . . . . . . . Effects 109 | . . . . . 7 102 Message Errors 26 | . . . . . 2 24 Matter Fused 19 | . . . . . 2 17 Heat Flow Errors 16 | . . . . . 1 15 Energy Discharges 14 | . . . . . 1 13 Parts Rejected 2 | . . . . . . 2 Parts Fused 1 | . . . . . . 1 Data Loss (minor) 9 | . . . . . . 9 Data Loss (major) 2 | . . . . . . 2 Misfires 5 | . . . . . . 5 Alerts 1 | . . . . . . 1 Misdirections 3 | . . . . . 1 2 Weapon Failures 11 | . . . . . . 11 Overload Shots . | . . . . . . . Overflow Damage 107 | . . . . . . 107 Projectiles . | . . . . . . . Explosions 107 | . . . . . . 107 Melee . | . . . . . . . Knockbacks 1 | . . 1 . . . . Impact 1 | . . 1 . . . . Kinetic . | . . . . . . . Secondary . | . . . . . . . Self-Inflicted Damage 85 | . . 6 . . 30 49 Shots 1 | . . . . . . 1 Rammed 15 | . . 15 . . . . Targets Rammed 15 | . . 15 . . . . Kicked . | . . . . . . . Crushed . | . . . . . . . Highest Temperature 456 | 9 9 . . . 209 456 Average Temperature 105 | 6 6 . . . 110 107 Received Heat Transfer 993 | . . 120 . 6 . 867 Effects 5 | . . . . . . 5 Shutdowns 1 | . . . . . . 1 Energy Bleed 1 | . . . . . . 1 Interference 3 | . . . . . . 3 Siege Activations . | . . . . . . . Martial Activations . | . . . . . . . Shielding Activations . | . . . . . . . Robots Disrupted . | . . . . . . . Combat Hostiles . | . . . . . . . Robots Corrupted . | . . . . . . . Combat Hostiles . | . . . . . . . Parts Fried . | . . . . . . . Impact Corruptions . | . . . . . . . Robots Melted 1 | . . . . . . 1 Combat Hostiles 1 | . . . . . . 1 Parts Melted 11 | . . . . . . 11 Heat Transferred 3258 | . 37 370 . . 185 2666 Parts Sabotaged . | . . . . . . . Parts Stolen . | . . . . . . . Parts Stripped . | . . . . . . . Power Chain Reactions . | . . . . . . . Alert | -11 -10 -10 -8 -6 -6 -6 ------- Run | Yrd Mat Sub Scr Fac Was Fac Maximum Alert Level 4 | . . . . . . 4 Low Security (%) 27 | 100 100 . . 100 100 9 Level 1 20 | . . . . . . 25 Level 2 21 | . . . . . . 26 Level 3 30 | . . . . . . 37 Level 4 . | . . . . . . . Level 5 . | . . . . . . . High Security . | . . . . . . . Max Security . | . . . . . . . Peak Influence 1472 | . 5 . . 20 17 1472 Initial 3 | . . . . . 3 . Average 443 | . . . . 5 2 552 Influence Increases 2438 | . 5 . . 30 48 2355 Destroy 0b10 Robot/C 660 | . . . . . . 660 Destroy 0b10 Robot/NC 85 | . 5 . . . . 80 Destroy Leader 194 | . . . . . . 194 Allied During Kill 446 | . . . . . . 446 Successful Hack 40 | . . . . . . 40 Disable Machine 450 | . . . . . . 450 Anti-Garrison Action 150 | . . . . . . 150 Destroy Structure 143 | . . . . . 48 95 Partial Spotted 45 | . . . . . . 45 Lose Combat Pursuer 225 | . . . . 30 . 195 Influence Decreases 966 | . 5 . . 20 58 883 Entered New Map 7 | . . . . . 7 . Time Decay 634 | . 5 . . 20 26 583 Lost Part 131 | . . . . . 11 120 Lost Ally 194 | . . . . . 14 180 Squads Dispatched 21 | . . . . . . 21 Investigation 5 | . . . . . . 5 Extermination 4 | . . . . . . 4 Reinforcement 7 | . . . . . . 7 Assault 5 | . . . . . . 5 Garrison . | . . . . . . . Intercept . | . . . . . . . Searches Triggered . | . . . . . . . Construction Impeded 3 | . . . . . . 3 Haulers Reinforced . | . . . . . . . Active Scanning Responses . | . . . . . . . Cargo Convoy Interrupts . | . . . . . . . Stealth | -11 -10 -10 -8 -6 -6 -6 --------- Run | Yrd Mat Sub Scr Fac Was Fac Distress Signals . | . . . . . . . Communications Jammed . | . . . . . . . Distress Signals . | . . . . . . . Times Spotted 66 | . . 3 . 3 3 57 Peak Tracking Total 10 | . . 2 . 2 2 10 Tactical Retreats 7 | . . . . 2 . 5 Traps | -11 -10 -10 -8 -6 -6 -6 ------- Run | Yrd Mat Sub Scr Fac Was Fac Traps Triggered 3 | . . . . 1 . 2 Indirectly 1 | . . . . . . 1 Trap Hack Attempts . | . . . . . . . Triggered . | . . . . . . . Disarmed . | . . . . . . . Reprogrammed . | . . . . . . . Reused . | . . . . . . . Traps Extracted . | . . . . . . . Installed . | . . . . . . . Triggered . | . . . . . . . Machines | -11 -10 -10 -8 -6 -6 -6 ---------- Run | Yrd Mat Sub Scr Fac Was Fac Machines Disabled 31 | . . . . . . 31 Max in Single Turn 7 | . . . . . . 7 Garrison Access 1 | . . . . . . 1 Machines Repaired . | . . . . . . . Machines Dismantled . | . . . . . . . Machines Sabotaged . | . . . . . . . Overloaded Fab Kills . | . . . . . . . Hacking | -11 -10 -10 -8 -6 -6 -6 --------- Run | Yrd Mat Sub Scr Fac Was Fac Machines Accessed 12 | . 1 . 1 . . 10 Terminals 5 | . 1 . . . . 4 Fabricators 1 | . . . . . . 1 Repair Stations . | . . . . . . . Recycling Units 3 | . . . . . . 3 Scanalyzers 1 | . . . . . . 1 Garrison Access 1 | . . . . . . 1 Total Hacks 21 | . 1 . 4 . . 16 Successful 13 | . 1 . 4 . . 8 Failed 8 | . . . . . . 8 Catastrophic 2 | . . . . . . 2 Database Lockouts . | . . . . . . . Manual 9 | . . . . . . 9 Terminals 7 | . 1 . . . . 6 Fabricators 1 | . . . . . . 1 Repair Stations . | . . . . . . . Recycling Units 6 | . . . . . . 6 Scanalyzers 2 | . . . . . . 2 Garrison Access 1 | . . . . . . 1 Terminal Hacks 8 | . 1 . 4 . . 3 Record 4 | . . . 4 . . . Part Schematic 1 | . . . . . . 1 Branch Access Points 2 | . 1 . . . . 1 Terminal Index 1 | . . . . . . 1 Fabricator Hacks 1 | . . . . . . 1 Load Schematic 1 | . . . . . . 1 Repair Station Hacks . | . . . . . . . Recycling Unit Hacks . | . . . . . . . Scanalyzer 1 | . . . . . . 1 Retrieve Study 1 | . . . . . . 1 Garrison Access Hacks . | . . . . . . . Unauthorized Hacks 3 | . . . . . . 3 Terminals . | . . . . . . . Fabricators . | . . . . . . . Repair Stations . | . . . . . . . Recycling Units 3 | . . . . . . 3 Fedlink 3 | . . . . . . 3 Scanalyzers . | . . . . . . . Garrison Access . | . . . . . . . Data Cores Recovered 2 | . 1 . . . . 1 Used . | . . . . . . . Hacking Detections 6 | . . . . . . 6 Full Trace Events 1 | . . . . . . 1 Feedback Events . | . . . . . . . Feedback Blocked . | . . . . . . . Robot Schematics Acquired . | . . . . . . . Robots Built . | . . . . . . . Authchips . | . . . . . . . Time . | . . . . . . . Total Robot Build Rating . | . . . . . . . Part Schematics Acquired 1 | . . . . . . 1 Parts Built . | . . . . . . . Authchips . | . . . . . . . Time . | . . . . . . . Total Part Build Rating . | . . . . . . . Part Studies Acquired 1 | . . . . . . 1 Parts Repaired . | . . . . . . . Time . | . . . . . . . Parts Recycled . | . . . . . . . Recycled Matter . | . . . . . . . Retrieved Matter . | . . . . . . . Retrieved Components . | . . . . . . . Parts Scanalyzed . | . . . . . . . Part Schematics Acquired . | . . . . . . . Parts Damaged . | . . . . . . . Bothacking | -11 -10 -10 -8 -6 -6 -6 ------------ Run | Yrd Mat Sub Scr Fac Was Fac Used RIF Installer . | . . . . . . . Robots Hacked . | . . . . . . . Non-combat . | . . . . . . . Combat . | . . . . . . . Robot Hacks Applied . | . . . . . . . Relay Couplers Released 2 | . . . . . . 2 Machine Destruction 2 | . . . . . . 2 Fabnet Peak Effective % . | . . . . . . . Robots Rewired . | . . . . . . . Allies Hacked . | . . . . . . . Hacks Repelled . | . . . . . . . Allies | -11 -10 -10 -8 -6 -6 -6 -------- Run | Yrd Mat Sub Scr Fac Was Fac Total Allies 19 | . . . . . 19 . Largest Group 19 | . . . . . 19 16 Highest-Rated Group 702 | . . . . . 702 613 Highest-Rated Ally 50 | . . . . . 50 50 Total Orders . | . . . . . . . Ally Attacks 315 | . . . . . 164 151 Total Damage 7729 | . . . . . 4611 3118 Kills 27 | . . . . . 8 19 Allies Corrupted 3 | . . . . . . 3 Allies Melted . | . . . . . . . Intel | -11 -10 -10 -8 -6 -6 -6 ------- Run | Yrd Mat Sub Scr Fac Was Fac Active Infowar (turns) 1898 | . . . . 84 162 1652 Optics 1864 | . . . . 50 162 1652 IFF 105 | . . . . 84 21 . Robot Analysis Total . | . . . . . . . Derelict Logs Recovered . | . . . . . . . Drone Launches . | . . . . . . . Drone Recoveries . | . . . . . . . Exploration | -11 -10 -10 -8 -6 -6 -6 ------------- Run | Yrd Mat Sub Scr Fac Was Fac Turns Passed 3400 | 95 122 271 766 89 162 1895 Spaces Moved 3222 | 57 36 117 1249 145 150 1468 Core 207 | 8 . 16 17 . 4 162 Treads 186 | 49 36 101 . . . . Legs 804 | . . . . . . 804 Wheels . | . . . . . . . Hover 1906 | . . . 1232 103 82 489 Flight 119 | . . . . 42 64 13 Fastest Speed 40 | 50 160 100 60 40 40 40 Average Speed 83 | 144 160 151 60 54 88 95 Slowest Speed 245 | 160 160 160 100 60 200 245 Overloaded Moves . | . . . . . . . Propulsion Burnouts . | . . . . . . . Robots Hopped 3 | . . . . 3 . . Potential Cave-ins . | . . . . . . . Cave-ins Triggered . | . . . . . . . Exploration Rate (%) 33 | 4 11 14 80 5 77 46 Regions Visited 6 Branch Regions 2 Pre-discovered Areas 1 | . . . . . . 1 Known Exits Taken . | . . . . . . . Unknown Exits Taken 4 | 1 1 1 1 . . . Scrap Searched 2 | . . . 2 . . . Spaces Dug 2 | . . . . . . 2 Terrain Destroyed 41 | . . . . . 1 40 Melee . | . . . . . . . Projectile 4 | . . . . . . 4 AOE 36 | . . . . . . 36 Terrain Rammed 1 | . . . . . 1 . Walls Destroyed 1 | . . . . . 1 . Machines Disabled . | . . . . . . . Actions | -11 -10 -10 -8 -6 -6 -6 --------- Run | Yrd Mat Sub Scr Fac Was Fac Total 3655 | 65 99 167 1258 151 171 1744 Wait 113 | . 63 . . 3 15 32 Move 3211 | 56 35 116 1248 139 149 1468 Hop 3 | . . . . 3 . . Pick Up 52 | 2 . 4 6 1 . 39 Fast Attach 31 | 6 . . 2 3 . 20 Attach 22 | . . 2 . 1 . 19 Detach 6 | . . . . . . 6 Swap 19 | . . . . . . 19 Drop 26 | . . . 2 1 1 22 Fire 156 | 1 1 30 . . 5 119 Melee . | . . . . . . . Ram 7 | . . 6 . . 1 . Kick . | . . . . . . . Crush 9 | . . 9 . . . . Escape Stasis . | . . . . . . . Rewire . | . . . . . . . Trap . | . . . . . . . Miscellaneous . | . . . . . . . Route ------- -11/Scrapyard -10/Materials (discovered 2 exits: Min / [*Sub]) -10/Subcaves -8/Scraptown (discovered 2 exits: [*Fac x2]) -6/Factory -6/Waste -6/Factory (discovered 3 exits: [*Fac] / Low x2) History --------- Turn | Location | Event 47 | -11/Scrapyard | Discovered new exit (range 15) 96 | -11/Scrapyard | Entered Materials 139 | -10/Materials | Identified exit to Mines 198 | -10/Materials | Discovered new exit (range 4) 218 | -10/Materials | Entered Subcaves 219 | -10/Subcaves | Shifting Twisted Machinery released Mak. Hacking Suite 219 | -10/Subcaves | Approached by a straggling Scientist 220 | -10/Subcaves | Ambushed by Subdwellers from Twisted Machinery 306 | -10/Subcaves | Build established: Mutant 461 | -10/Subcaves | Core integrity fell below 50% 489 | -10/Subcaves | Entered Scraptown 497 | -8/Scraptown | Lost 4 parts (2p1n1w) 564 | -8/Scraptown | Visited UFD Registry 564 | -8/Scraptown | Registered with UFD as "Cargomaster" 584 | -8/Scraptown | Visited Science Testing Area 593 | -8/Scraptown | Visited A0-MCA Data Center 600 | -8/Scraptown | Visited LU-1G1's Boring Crew 813 | -8/Scraptown | Discovered new exit (range 11) 857 | -8/Scraptown | Guru changed UFD alias to "Wavespawn" 1047 | -8/Scraptown | Given a B- rating by A0-MCA 1049 | -8/Scraptown | Found A0-MCA's Component Scanner 1069 | -8/Scraptown | Visited Infowarlord's Domain 1075 | -8/Scraptown | Found Exp. Signal Interpreter 1093 | -8/Scraptown | Visited Abandonware Association 1100 | -8/Scraptown | Learned abandonware demo "HACKBUD.EXE" 1100 | -8/Scraptown | Learned abandonware demo "SHUTEYE.EXE" 1129 | -8/Scraptown | Visited Research Penetration Think Tank 1149 | -8/Scraptown | Visited Supply Room 1216 | -8/Scraptown | Met Optimus 1216 | -8/Scraptown | Accepted into 0bPrime 1253 | -8/Scraptown | Discovered new exit (range 3) 1255 | -8/Scraptown | Entered Factory 1255 | -6/Factory | Evolved 8 slots: Propulsion x4, Utility x4 1329 | -6/Factory | Found Launcher Loader 1344 | -6/Factory | Sucked down chute 1344 | -6/Factory | Entered Waste 1355 | -6/Waste | Spotted C-40 Crusher 1357 | -6/Waste | Spotted C-40 Crusher 1359 | -6/Waste | EMP discharged 1366 | -6/Waste | Met Warlord forces unprepared to attack 1366 | -6/Waste | System corruption reached 10% 1386 | -6/Waste | Allies destroyed C-40 Crusher 1399 | -6/Waste | Spotted C-40 Crusher 1402 | -6/Waste | Spotted C-40 Crusher 1405 | -6/Waste | Spotted C-40 Crusher 1414 | -6/Waste | Allies destroyed C-40 Crusher 1417 | -6/Waste | Allies destroyed C-40 Crusher 1420 | -6/Waste | Spotted C-40 Crusher 1423 | -6/Waste | Allies destroyed C-40 Crusher 1428 | -6/Waste | Allies destroyed C-40 Crusher 1459 | -6/Waste | EMP discharged 1472 | -6/Waste | Discovered new exit (range 11) 1482 | -6/Waste | Lost 3 allies 1490 | -6/Waste | Identified exit to Factory 1506 | -6/Waste | Entered Factory 1506 | -6/Factory | Accompanied by 16 allies 1543 | -6/Factory | Identified exit to Lower Caves 1677 | -6/Factory | Loaded intel: 8 recycling unit locations 1740 | -6/Factory | Learned location of Protoforge (-2) 2192 | -6/Factory | Lost 6 allies 2385 | -6/Factory | Discovered new exit (range 21) 2419 | -6/Factory | Spotted B-75 Beast 2498 | -6/Factory | Destroyed B-75 Beast 2505 | -6/Factory | Lost 6 allies 2523 | -6/Factory | Lost 3 parts (1p2n) 2556 | -6/Factory | First assault squad dispatched 2951 | -6/Factory | Released all parts (13) 2958 | -6/Factory | Core integrity fell below 50% 2992 | -6/Factory | Lost 5 parts (5n) 3050 | -6/Factory | System corruption reached 30% 3202 | -6/Factory | Core integrity fell below 20% 3401 | -6/Factory | Destroyed by S-27 Virus with Autogun Last Messages --------------- 03387_ ALERT: Hostiles spotted, dispatching reinforcements to Terminal F004. 03391_ Fabricator disabled. 03391_ Destroyed Seismic Detector. 03392_ T-07 Excavator destroyed. 03394_ Fusion Modulator explodes. 03394_ T-07 Excavator destroyed. 03396_ System corrupted: Imp. Proton Missile Launcher failed to launch. 03397_ System corrupted: Heat flow error (+123). 03400_ Fusion Modulator explodes. 03400_ Door malfunctions. 03400_ G-50 Soldier destroyed. 03400_ Destroyed Carbon-fiber Leg. 03400_ ALERT: Garrison Access compromised, dispatching multiple assault carriers. 03400_ Garrison Access disabled. 03400_ Relay Coupler [Grunt] tumbles out of Garrison Access. 03400_ Relay Coupler [Sentry] tumbles out of Garrison Access. 03400_ Gravmag Array destroyed. 03400_ Destroyed Gravmag Array. Map ----- +----------------------------------------------------+ | | | | | | | ?????????????????????????????????????????????????? | | ?????????????????????????????????????????????????? | | ?????????????????????????????????????????????????? | | ??????????????????????? ???????????????????? | | ??????????????????????? ?? ??????????????? | | ???????????????????? ? "?? ?????????????? | | ???????????????????? ? ""? ?????????????? | | ???????????????????? ? ""? ?????????????? | | ??????????????????###;##;;k "" #?????????????? | | ?????????????????##;;;;;;;; "" #?????????????? | | ?????????????????# ;!! g #?????????????? | | ?????????????????#" ;!!t""" #?????????????? | | ?????????????????#" ;!! """ #?????????????? | | ?????????????????# """ #?????????????? | | ?????????????????#" g "" #??????????T" " | | ?????????????????#" ^ "" #??????? " | | ?????????????????# #???"" # " | | ?????????????????#[ ! ! ## # | | ?????????????????# ; "" | | ?????????????????#;;;;;; ;; " | | ???????????????#####;; | | ???????????????+ ! | | ????????????????????#; @= %| ??? | | ????????????????????####### s ;????? | | ??????????????????????????######## ;????? | | ?????????????????????????????????# #????? | | ?????????????????????????????????# ###### | | ?????????????????????????????????# | | ?????????????????????????????????# ] | | ???????????????################### ** | | ???????????????# ^ *! | | ???????????????# | | ???????????????# " " " !* | | ???????????????# " " " """" !* | | ???????????????# " " " """" ! | | ???????????????# " " " """" | | ???????????????? "" " " " ####### " | | ????????????????""" " " " #?????# """" "" | | ????????????????"F " " " #??""?# """" G | | ????????????????""" " " " #??Y"?# """" "" | | ???????????????? "" " " " #??""?# " | | ???????????????# #?????# | | ???????????????# ##+#### | | ???????????????# | | ???????????????# | | ???????????????# | | ???????????????# | +----------------------------------------------------+ Best States ------------- Heat Dissipation 56 Energy Generation 18 Energy Capacity 310 Matter Stores 300 Matter Capacity 300 Sight Range 22 Terrain Scan Density 10 Additional Mass Support 6 Evasion (%) 70 Targeting Accuracy 8 Melee Accuracy 8 Core Analysis 6 Recoil Reduction 2 Offensive Hacking 11 Item Schematics ----------------- Neutron Missile Launcher | -6/Factory | Hacked Robot Schematics ------------------ None Fabricated ------------ Nothing Repaired ---------- Nothing Studied --------- Arm. Leg | -6/Factory | Hacked Alien Tech Used ----------------- None Achievements -------------- Longdome?! Challenges ------------ None Game ------ Seed DroneEncryptedBuckler Manual? 0 Play Time 00:31:39 Cumulative 410.8 hours Start 2025.11.15 @ 12:18:33 End 2025.11.15 @ 12:50:33 Sessions 3 Manual Loads 0 Difficulty Rogue Special Mode None Game No. 370 Rogue 334 Adventurer 36 Explorer 0 Win Type - Total 16 Types 7/0/9/0/0/0/0/0/0/0 Lore% 72 Gallery% 85 Achievement% 62 Wizard Run 0 Options --------- Layout 0 ASCII 0 Keyboard 0 Movement Mouse Keybinds 0 Fullscreen 1 Font 18/SmallcapsGlow Map View 76x50 Zoom Use 0% Tactical HUD 1 Map Filters NONE Filters NONE Steam 1 RUN: 5e7fb5a3-62ba-4ab6-b091-5976718745b4